lending/lending_fUSD_20240830
["ID","MTS","AMOUNT","RATE_DAILY","PERIOD"]
[336625940,1724976602513,150.0,0.00010959,2]
[336625941,1724976602740,150.0,0.00010959,2]
[336625943,1724976632264,-250.0,0.00012,2]
[336625944,1724976632273,-300.0,0.00014,2]
[336625945,1724976632282,-175.69822379,0.000159,2]
[336625946,1724976632291,-350.0,0.00016,2]
[336625947,1724976632301,-255.0,0.00017126,2]
[336625948,1724976632310,-245.0,0.00017213,2]
[336625949,1724976632320,-361.17305812,0.00017936,2]
[336625950,1724976632335,-261.82694188,0.00017936,2]
[336625951,1724976632345,-447.0,0.00017936,2]
[336625952,1724976632354,-150.04,0.0001796,2]
[336625953,1724976632363,-400.0,0.00018,2]
[336625954,1724976632373,-267.19360208,0.00018,18]
[336625955,1724976632387,-479.9637543,0.00018,18]
[336625956,1724976632428,-2.84264362,0.00018,18]
[336625957,1724976632438,-499.99,0.00018,2]
[336625958,1724976632447,-626.98749617,0.00018,2]
[336625959,1724976632458,-60.04250383,0.00018,2]
[336625960,1724976632467,-167.17,0.00018334,2]
[336625961,1724976632476,-43.84378319,0.00019703,2]
[336625963,1724976632494,-152.71621681,0.00019703,2]
[336625965,1724976632504,-117.54965546,0.00020459,2]
[336625967,1724976632515,-296.39034454,0.00020459,2]
[336625968,1724976632524,-750.0,0.00022,22]
[336625969,1724976632533,-150.0,0.00022066,2]
[336625970,1724976632542,-272.0,0.0002221,2]
[336625971,1724976632551,-150.0,0.0002226,2]
[336625972,1724976632559,-1000.0,0.00022271,2]
[336625973,1724976632569,-757.86,0.00022275,30]
[336625974,1724976632577,-174.74,0.0002228,2]
[336625975,1724976632588,-4546.4,0.00022304,2]
[336625976,1724976632597,-250.0,0.00022329,2]
[336625977,1724976632607,-250.0,0.00022385,2]
[336625978,1724976632617,-500.0,0.00022385,3]
[336625979,1724976632626,-280.35,0.00022414,2]
[336625980,1724976632635,-150.0,0.00022655,2]
[336625981,1724976632644,-8217.45801831,0.00022673,2]
[336625982,1724976632655,-2999.0,0.00022673,2]
[336625983,1724976632666,-1733.35629641,0.00022673,2]
[336625984,1724976632678,-819.28,0.00022673,2]
[336625985,1724976638388,-2469.79999999,0.00022528,2]
[336625986,1724976638495,-153.07000001,0.00022528,2]
[336625987,1724976638505,-1539.78057734,0.00022673,2]
[336625988,1724976638517,-1740.23574316,0.00022673,2]
[336625989,1724976638548,-1002.26044,0.00022673,2]
[336625990,1724976638602,-2091.43465633,0.00022673,2]
[336625991,1724976638656,-3757.19426845,0.00022673,2]
[336625992,1724976638666,-1500.0,0.00022707,2]
[336625993,1724976638677,-413.94,0.00022723,2]
[336625994,1724976638686,-250.0,0.00022761,2]
[336625995,1724976638696,-150.0,0.00022767,2]
[336625996,1724976638705,-2000.0,0.00022768,2]
[336625998,1724976638715,-2437.46,0.00022768,2]
[336626000,1724976638724,-209.07,0.00022798,2]
[336626002,1724976638733,-2508.91991458,0.00022803,2]
[336626004,1724976638745,-598.5948,0.00022803,2]
[336626170,1724976640342,-265.061224,0.0001831,2]
[336626172,1724976640353,-447.62426939,0.0001831,2]
[336626198,1724976640605,-952.3045784,0.0001831,2]
[336626200,1724976640614,-74.08348542,0.00022803,2]
[336626202,1724976640624,-1497.18,0.00022903,2]
[336626204,1724976640634,-345.6,0.00022935,2]
[336626206,1724976640643,-200.0,0.00023,2]
[336626208,1724976640652,-180.0,0.00023205,2]
[336626210,1724976640661,-150.0,0.00023245,2]
[336626212,1724976640671,-250.0,0.000233,2]
[336626214,1724976640679,-150.0,0.00023834,2]
[336626216,1724976640689,-150.083008,0.00024148,5]
[336626218,1724976640699,-150.083008,0.00024148,4]
[336626220,1724976640709,-150.083008,0.00024248,5]
[336626222,1724976640719,-150.083008,0.00024248,4]
[336626224,1724976640729,-150.083008,0.00024248,3]
[336626225,1724976640739,-500.0,0.00024339,2]
[336626227,1724976640750,-500.0,0.00024348,2]
[336626230,1724976640761,-150.083008,0.00024348,3]
[336626232,1724976640772,-150.083008,0.00024348,4]
[336626234,1724976640783,-150.083008,0.00024348,5]
[336626236,1724976640792,-500.0,0.00024357,2]
[336626238,1724976640806,-500.0,0.00024365,2]
[336626240,1724976640817,-1896.25292195,0.0002437,2]
[336626242,1724976640827,-500.0,0.00024374,2]
[336626244,1724976640838,-5568.88,0.0002438,7]
[336626246,1724976640847,-500.0,0.00024383,2]
[336626248,1724976640856,-500.0,0.00024392,2]
[336626249,1724976640865,-500.0,0.00024401,2]
[336626250,1724976640875,-500.0,0.00024409,2]
[336626251,1724976640884,-500.0,0.00024418,2]
[336626252,1724976640894,-150.0,0.00024423,2]
[336626253,1724976640903,-500.0,0.00024427,2]
[336626254,1724976640912,-500.0,0.00024436,2]
[336626255,1724976640923,-500.0,0.00024445,2]
[336626256,1724976640932,-150.083008,0.00024448,4]
[336626257,1724976640944,-150.083008,0.00024448,3]
[336626258,1724976640955,-500.0,0.00024453,2]
[336626259,1724976640966,-1397.4458,0.00024457,2]
[336626260,1724976640975,-500.0,0.00024462,2]
[336626261,1724976640985,-500.0,0.00024471,2]
[336626262,1724976640996,-500.0,0.0002448,2]
[336626263,1724976641006,-500.0,0.00024489,2]
[336626264,1724976641015,-500.0,0.00024497,2]
[336626265,1724976641026,-500.0,0.00024506,2]
[336626266,1724976641036,-500.0,0.00024515,2]
[336626267,1724976641045,-500.0,0.00024524,2]
[336626268,1724976641055,-500.0,0.00024533,2]
[336626269,1724976641065,-500.0,0.00024541,2]
[336626270,1724976641074,-500.0,0.0002455,2]
[336626271,1724976641083,-500.0,0.00024556,2]
[336626272,1724976641094,-337.70988339,0.00024556,2]
[336626273,1724976641103,-500.0,0.00024556,2]
[336626274,1724976641112,-500.0,0.00024556,2]
[336626275,1724976641121,-500.0,0.00024556,2]
[336626277,1724976641130,-500.0,0.00024556,2]
[336626279,1724976641139,-500.0,0.00024556,2]
[336626281,1724976641149,-500.0,0.00024556,2]
[336626283,1724976641159,-500.0,0.00024556,2]
[336626285,1724976641169,-214.52681215,0.00024556,2]
[336626287,1724976641178,-500.0,0.00024556,2]
[336626289,1724976641187,-500.0,0.00024556,2]
[336626291,1724976641196,-500.0,0.00024556,2]
[336626293,1724976641206,-500.0,0.00024557,2]
[336626295,1724976641215,-12514.22233805,0.00024557,2]
[336626297,1724976641228,-16444.70238965,0.00024557,2]
[336626497,1724976643381,-274.41171526,0.00024557,2]
[336626573,1724976645282,-9992.05645704,0.00024557,2]
[336626574,1724976645292,-23745.638786,0.00024557,2]
[336626575,1724976645303,-2452.19379317,0.00024557,2]
[336626576,1724976645316,-48366.35358503,0.00024557,2]
[336626581,1724976647024,-24147.23704386,0.00024557,2]
[336626582,1724976647035,-1005.495,0.00024557,2]
[336626584,1724977171148,158.09,0.00010959,2]
[336626585,1724977589425,2565.205812,0.00010932,2]
[336626588,1724977638372,205.0,9.8e-05,2]
[336626592,1724977750789,2194.39119674,0.000109,2]
[336626595,1724977790583,322.75214824,0.000109,2]
[336626596,1724977792095,2851.67519023,0.000109,2]
[336626598,1724977817120,191.52496413,0.000109,2]
[336626612,1724977831397,-1313.16121607,0.00010988,2]
[336626614,1724977831407,-153.59,0.0001099,2]
[336626616,1724977831417,-1097.05159615,0.0001099,2]
[336626618,1724977831428,-4972.90114567,0.0001099,2]
[336626620,1724977831438,-153.59,0.0001099,2]
[336626622,1724977831447,-153.59,0.0001099,2]
[336626624,1724977831457,-153.59,0.0001099,2]
[336626626,1724977831466,-1762.05906666,0.00010997,2]
[336626627,1724977831476,-300.0,0.00010998,2]
[336626628,1724977831485,-150.0,0.00010999,2]
[336626629,1724977831494,-500.0,0.00010999,2]
[336626630,1724977831503,-500.0,0.00010999,2]
[336626631,1724977831516,-500.0,0.00010999,2]
[336626632,1724977831526,-455.26277756,0.00010999,2]
[336626633,1724977831536,-642.16,0.00010999,2]
[336626634,1724977831545,-50442.1197371,0.00011,2]
[336626635,1724977831557,-364.67036088,0.00011,2]
[336626636,1724977831569,-251.03914311,0.00011,2]
[336626637,1724977831580,-283.76013979,0.00011,2]
[336626638,1724977831592,-7011.24858087,0.00011,2]
[336626639,1724977831603,-11721.81184176,0.00011,2]
[336626640,1724977831615,-2127.91,0.00011,2]
[336626641,1724977831626,-1239.39805608,0.00011,2]
[336626646,1724977837486,-873.74388175,0.00011,2]
[336626647,1724977837544,-2033.01980657,0.00011,2]
[336626648,1724977837555,-1194.1931649,0.00011,2]
[336626649,1724977837566,-2968.05,0.00011,2]
[336626650,1724977837576,-400.66006187,0.00011,2]
[336626651,1724977837606,-1000.60309997,0.00011,2]
[336626652,1724977837666,-109145.14864811,0.00011,2]
[336626653,1724977837676,-1000.0,0.00011,2]
[336626654,1724977837688,-422.83901956,0.00011,2]
[336626655,1724977837700,-598.31424,0.00011,2]
[336626656,1724977837724,-1125175.81408829,0.00011,2]
[336626657,1724977837737,-288.55661629,0.00011,2]
[336626658,1724977837749,-1291.06,0.00011,2]
[336626659,1724977837763,-498.35828287,0.00011,2]
[336626660,1724977837775,-8779.34461839,0.00011,2]
[336626661,1724977837785,-512406.17038278,0.00011,2]
[336626662,1724977837796,-356.528,0.00011,2]
[336626664,1724977837807,-4888.27761967,0.00011,2]
[336626848,1724977839966,-1335.93812631,0.00011,2]
[336626849,1724977839978,-2843.51779656,0.00011,2]
[336626850,1724977839990,-137560.34830456,0.00011,2]
[336626851,1724977840002,-1777.7292,0.00011,2]
[336626852,1724977840018,-1720.07733724,0.00011,2]
[336626853,1724977840029,-2971.81674876,0.00011,2]
[336626854,1724977840040,-41374.91738175,0.00011,2]
[336626855,1724977840052,-3455.39202086,0.00011,2]
[336626856,1724977840063,-21256.29782865,0.00011,2]
[336626857,1724977840074,-285.24212946,0.00011,2]
[336626858,1724977840085,-2750.59999996,0.00011,2]
[336626859,1724977840096,-24929.11631104,0.00011,2]
[336626860,1724977840107,-1016.89946502,0.00011,2]
[336626861,1724977840118,-504.152,0.00011,2]
[336626862,1724977840129,-3804.28083584,0.00011,2]
[336626864,1724977840140,-884.16644664,0.00011,2]
[336626866,1724977840150,-417515.93093922,0.00011,2]
[336626868,1724977840161,-1451.62506544,0.00011,2]
[336626870,1724977840173,-350.76705182,0.00011,2]
[336626872,1724977840187,-293.59112959,0.00011,2]
[336626874,1724977840198,-253.44497898,0.00011,2]
[336626876,1724977840209,-556.86577081,0.00011,2]
[336626966,1724977842524,-153074.83481633,0.00011,2]
[336626967,1724977842535,-10675.53744007,0.00011,2]
[336626968,1724977842547,-3558.0,0.00011,2]
[336627000,1724977843328,-366.300563,0.00011,2]
[336627001,1724977843340,-327.12129972,0.00011,2]
[336627002,1724977843351,-1459.96886164,0.00011,2]
[336627003,1724977843363,-4336.95767507,0.00011,2]
[336627004,1724977843374,-1243.9391314,0.00011,2]
[336627005,1724977843386,-9250.7235472,0.00011,2]
[336627006,1724977843397,-384.34999965,0.00011,2]
[336627007,1724977843408,-360.80937151,0.00011,2]
[336627008,1724977843419,-612.5,0.00011,2]
[336627009,1724977843430,-56948.75971001,0.00011,2]
[336627010,1724977843442,-11603.08544988,0.00011,2]
[336627013,1724977845422,-660.32229313,0.00011,2]
[336627014,1724977845480,-16116.7258984,0.00011,2]
[336627015,1724977845491,-1933.99298,0.00011,2]
[336627016,1724977845502,-1452.70560616,0.00011,2]
[336627017,1724977845540,-738.83090143,0.00011,2]
[336627018,1724977845600,-685.08853129,0.00011,2]
[336627019,1724977845610,-41866.7681498,0.00011,2]
[336627020,1724977845622,-547.84176427,0.00011,2]
[336627021,1724977845933,-1802.66364775,0.00011,2]
[336627022,1724977845957,-620.1702649,0.00011,2]
[336627023,1724977845968,-2673.4011696,0.00011,2]
[336627024,1724977845979,-671.91103816,0.00011,2]
[336627025,1724977845990,-783.9555,0.00011,2]
[336627026,1724977856700,179.67614889,0.000109,2]
[336627027,1724977916819,346.47582145,0.000109,2]
[336627028,1724978265823,322.73720876,0.000109,2]
[336627029,1724978294217,162.84,0.00010959,2]
[336627030,1724978383062,300.0,0.00010961,2]
[336627031,1724978450826,300.0,0.00010961,4]
[336627032,1724978469306,176.20591623,0.000109,2]
[336627033,1724978489677,400.0,0.00010961,4]
[336627035,1724978505567,350.0,0.00010961,4]
[336627036,1724978540968,413.9962,0.0001089,2]
[336627039,1724978626512,300.0,0.00010961,4]
[336627040,1724978644349,350.0,0.00010961,3]
[336627041,1724978665392,350.0,0.00010961,3]
[336627042,1724978666247,-300.0,0.0001099,2]
[336627043,1724978667622,-300.0,0.0001099,2]
[336627044,1724978668980,-300.0,0.0001099,2]
[336627045,1724978670178,-300.0,0.0001099,2]
[336627046,1724978671300,-300.0,0.0001099,2]
[336627047,1724978672611,-300.0,0.0001099,2]
[336627048,1724978673799,-300.0,0.0001099,2]
[336627049,1724978674986,-300.0,0.0001099,2]
[336627050,1724978676946,-300.0,0.0001099,2]
[336627052,1724978808676,150.04,0.00010959,2]
[336627053,1724978811457,150.0,9.888e-05,2]
[336627054,1724978811896,150.0,0.00010254,2]
[336627055,1724978812195,150.0,0.0001062,2]
[336627056,1724978861260,397.0,0.00024,120]
[336627065,1724979031583,-274.4076759,0.00010986,2]
[336627066,1724979031592,-300.0,0.00010989,2]
[336627067,1724979031602,-22925.58709869,0.0001099,2]
[336627068,1724979031611,-150.0,0.00010999,2]
[336627069,1724979031620,-170.84075263,0.00010999,2]
[336627070,1724979031631,-31103.865,0.00011,2]
[336627071,1724979031640,-106180.66095477,0.00011,2]
[336627072,1724979031655,-7911.70535856,0.00011,2]
[336627073,1724979031666,-266.95294903,0.00011,2]
[336627074,1724979031677,-41313.49718545,0.00011,2]
[336627075,1724979031688,-26978.14290206,0.00011,2]
[336627076,1724979031699,-76326.20342919,0.00011,2]
[336627077,1724979031734,-8004.09835654,0.00011,2]
[336627078,1724979031745,-2638.16445635,0.00011,2]
[336627079,1724979031792,-1682.35820237,0.00011,2]
[336627081,1724979037705,-876.60159755,0.00011,2]
[336627082,1724979037716,-262.72855309,0.00011,2]
[336627083,1724979037761,-754.9956438,0.00011,2]
[336627084,1724979037773,-1227.17825773,0.00011,2]
[336627085,1724979037784,-2016.00000002,0.00011,2]
[336627086,1724979037924,-568.94985213,0.00011,2]
[336627087,1724979037935,-453.30570109,0.00011,2]
[336627088,1724979037946,-404.11599922,0.00011,2]
[336627089,1724979037957,-1780.0858619,0.00011,2]
[336627090,1724979037967,-1659.66309036,0.00011,2]
[336627091,1724979037985,-622.21983407,0.00011,2]
[336627093,1724979037996,-2919.9,0.00011,2]
[336627095,1724979038007,-578.64762652,0.00011,2]
[336627097,1724979038018,-17960.51899038,0.00011,2]
[336627100,1724979038029,-1042.82955653,0.00011,2]
[336627102,1724979038040,-570.55999995,0.00011,2]
[336627104,1724979038051,-5255.92241343,0.00011,2]
[336627106,1724979038062,-777.24260206,0.00011,2]
[336627264,1724979039648,-385.66261705,0.00011,2]
[336627267,1724979039660,-505.2624392,0.00011,2]
[336627269,1724979039671,-752.06647049,0.00011,2]
[336627271,1724979039682,-12580.63225598,0.00011,2]
[336627273,1724979039693,-703.90320097,0.00011,2]
[336627275,1724979039707,-606.43908688,0.00011,2]
[336627277,1724979039718,-539.06283141,0.00011,2]
[336627283,1724979039764,-416.47603396,0.00011,2]
[336627285,1724979039774,-139890.60302102,0.00011,2]
[336627286,1724979039785,-15678.20301582,0.00011,2]
[336627289,1724979039796,-377.63072068,0.00011,2]
[336627291,1724979039807,-1600.65,0.00011,2]
[336627293,1724979039817,-656.14,0.00011,2]
[336627295,1724979039828,-5989.40000001,0.00011,2]
[336627297,1724979039843,-8144.42314774,0.00011,2]
[336627300,1724979039854,-281.186742,0.00011,2]
[336627302,1724979039865,-9096.64373114,0.00011,2]
[336627304,1724979039876,-8947.21879473,0.00011,2]
[336627306,1724979039887,-8943.78386462,0.00011,2]
[336627308,1724979039898,-9077.54866152,0.00011,2]
[336627310,1724979039909,-8943.84023489,0.00011,2]
[336627312,1724979039920,-39212.85223734,0.00011,2]
[336627315,1724979039931,-461174.10112435,0.00011,2]
[336627316,1724979039942,-5228.48614854,0.00011,2]
[336627319,1724979039953,-463605.22922686,0.00011,2]
[336627320,1724979039962,-123685.72591754,0.00011,2]
[336627323,1724979039973,-254.25,0.00011,2]
[336627325,1724979039984,-2607.20000779,0.00011,2]
[336627327,1724979039995,-44653.28265325,0.00011,2]
[336627329,1724979040005,-1032.20483647,0.00011,2]
[336627578,1724979042673,-741.26640629,0.00011,2]
[336627580,1724979042685,-31029.00000004,0.00011,2]
[336627586,1724979042731,-5507.36088862,0.00011,2]
[336627633,1724979043168,-3395.57123752,0.00011,2]
[336627636,1724979043179,-4616.80177371,0.00011,2]
[336627638,1724979043191,-9022.73171167,0.00011,2]
[336627640,1724979043202,-1311.45,0.00011,2]
[336627642,1724979043212,-1625.7938459,0.00011,2]
[336627644,1724979043223,-296.18044634,0.00011,2]
[336627697,1724979043732,-632.52348141,0.00011,2]
[336627700,1724979043744,-3087.7847,0.00011,2]
[336627702,1724979043754,-1647.90000071,0.00011,2]
[336627704,1724979043765,-1575.12680245,0.00011,2]
[336627706,1724979043775,-24935.22661887,0.00011,2]
[336627708,1724979043790,-1279.97005618,0.00011,2]
[336627711,1724979043801,-494.33920324,0.00011,2]
[336627771,1724979045618,-1595.07983397,0.00011,2]
[336627772,1724979045671,-7311.50839244,0.00011,2]
[336627773,1724979045681,-278.66841754,0.00011,2]
[336627774,1724979045694,-46047.89672255,0.00011,2]
[336627775,1724979045730,-16148.70353746,0.00011,2]
[336627776,1724979045743,-27392.8904637,0.00011,2]
[336627777,1724979045754,-1064.7,0.00011,2]
[336627778,1724979045842,-2784.40376051,0.00011,2]
[336627779,1724979045853,-1867.26480771,0.00011,2]
[336627780,1724979045864,-3095.56445462,0.00011,2]
[336627781,1724979045897,-856.2321508,0.00011,2]
[336627782,1724979045908,-2311.24974926,0.00011,2]
[336627783,1724979045919,-810.7547,0.00011,2]
[336627789,1724979099596,286.94285339,0.000109,2]
[336627790,1724979111395,297.39561404,0.000109,2]
[336627791,1724979115922,342.05391482,0.000109,2]
[336627792,1724979162501,156.7847564,0.000109,2]
[336627793,1724979211971,174.90327436,0.000109,2]
[336627794,1724979224762,3520.9421243,0.000109,2]
[336627795,1724979298876,181.19,0.00010959,2]
[336627797,1724979441205,265.25191,0.0001089,2]
[336627798,1724979538261,2676.56052591,0.000109,2]
[336627799,1724979713625,176.84604122,0.000109,2]
[336627800,1724979757924,300.0,0.000109,2]
[336627801,1724979790152,344.99684,0.0001089,2]
[336627802,1724979886818,500.0,0.00024,120]
[336627804,1724979929327,158.09,0.00010959,2]
[336627807,1724980138283,221.04326,0.0001089,2]
[336627808,1724980151480,-2889.8753403,0.00010976,2]
[336627809,1724980151522,-1359.4919938,0.00010976,2]
[336627810,1724980151548,-159.3363681,0.00010976,2]
[336627811,1724980151574,-1371.0469784,0.0001099,2]
[336627812,1724980151608,-49.5684222,0.0001099,2]
[336627813,1724980151635,-1420.6154006,0.0001099,2]
[336627814,1724980151661,-1419.6915175,0.0001099,2]
[336627815,1724980151691,-0.9238831,0.0001099,2]
[336627816,1724980151719,-437.44405475,0.00010997,2]
[336627817,1724980151750,-365.33007188,0.00010997,2]
[336627818,1724980151777,-2524.54526842,0.00010997,2]
[336627819,1724980151808,-2889.8753403,0.00010997,2]
[336627833,1724980232577,-150.0,0.00010998,2]
[336627834,1724980232586,-300.0,0.00010998,2]
[336627835,1724980232595,-150.0,0.00010999,2]
[336627836,1724980232604,-500.0,0.00010999,2]
[336627837,1724980232613,-500.0,0.00010999,2]
[336627838,1724980232623,-500.0,0.00010999,2]
[336627839,1724980232632,-500.0,0.00010999,2]
[336627840,1724980232641,-177.5,0.00010999,2]
[336627841,1724980232651,-500.0,0.00010999,2]
[336627842,1724980232663,-500.0,0.00010999,2]
[336627843,1724980232672,-189.36212033,0.00010999,2]
[336627844,1724980232680,-500.0,0.00010999,2]
[336627845,1724980232689,-506.45907316,0.00010999,2]
[336627846,1724980232699,-500.0,0.00010999,2]
[336627847,1724980232708,-500.0,0.00010999,2]
[336627848,1724980232717,-502.443795,0.00010999,2]
[336627849,1724980232726,-2381.96207288,0.00011,2]
[336627850,1724980232737,-993.09657043,0.00011,2]
[336627851,1724980232749,-415.09721781,0.00011,2]
[336627852,1724980232760,-308.807424,0.00011,2]
[336627853,1724980232810,-269.0000005,0.00011,2]
[336627854,1724980232822,-2739.25162751,0.00011,2]
[336627855,1724980232833,-719.56763967,0.00011,2]
[336627856,1724980232894,-1765.2517191,0.00011,2]
[336627857,1724980232904,-551.29288503,0.00011,2]
[336627858,1724980232916,-3440.07294455,0.00011,2]
[336627859,1724980232927,-582.92504737,0.00011,2]
[336627860,1724980232938,-491.54364268,0.00011,2]
[336627861,1724980232949,-32945.57179791,0.00011,2]
[336627863,1724980237872,-167.96206738,0.00010997,2]
[336627864,1724980237881,-839.8103369,0.00010997,2]
[336627865,1724980237890,-900.93789479,0.00011,2]
[336627866,1724980237902,-26612.30646997,0.00011,2]
[336627867,1724980237913,-1284.68,0.00011,2]
[336627868,1724980237934,-406.14743283,0.00011,2]
[336627869,1724980237998,-7966.59184211,0.00011,2]
[336627870,1724980238010,-6045.54035109,0.00011,2]
[336627871,1724980238059,-104465.50797804,0.00011,2]
[336627872,1724980238071,-1433.91078519,0.00011,2]
[336627873,1724980238082,-345.0,0.00011,2]
[336627874,1724980238121,-404.44779158,0.00011,2]
[336627875,1724980238183,-653582.0319521,0.00011,2]
[336627876,1724980238192,-589699.41184763,0.00011,2]
[336627877,1724980238203,-7266.08921481,0.00011,2]
[336627878,1724980238214,-651.2,0.00011,2]
[336627879,1724980238245,-1756.68184803,0.00011,2]
[336628044,1724980239896,-1618.14927114,0.00011,2]
[336628047,1724980239907,-13532.39840259,0.00011,2]
[336628051,1724980240017,-1387.96978456,0.00011,2]
[336628052,1724980240028,-51656.78567132,0.00011,2]
[336628053,1724980240191,-885.38823486,0.00011,2]
[336628054,1724980240202,-455.80229998,0.00011,2]
[336628119,1724980243281,-1149.44775671,0.00011,2]
[336628120,1724980243291,-817.91371291,0.00011,2]
[336628122,1724980243702,-914.08606442,0.00011,2]
[336628123,1724980243713,-289.34499,0.00011,2]
[336628124,1724980243726,-407.97,0.00011,2]
[336628127,1724980245777,-1454.83956636,0.00011,2]
[336628130,1724980246013,-15910.7706702,0.00011,2]
[336628131,1724980246024,-118753.75999092,0.00011,2]
[336628132,1724980246075,-656.5,0.00011,2]
[336628133,1724980246087,-870.06142693,0.00011,2]
[336628134,1724980443156,287.49736,0.0001089,2]
[336628135,1724980466626,834.06,0.00010591,2]
[336628136,1724980482198,7853.11547533,0.000109,2]
[336628137,1724980537614,1500.0,0.00010952,2]
[336628139,1724980562510,203.01,0.00010959,2]
[336628140,1724980597379,1500.0,0.00010827,2]
[336628141,1724980598273,584.54074506,0.00010816,2]
[336628142,1724980598301,1500.0,0.00010863,2]
[336628143,1724980598331,1500.0,0.00010837,2]
[336628144,1724980619874,151.02554851,0.00010751,2]
[336628145,1724980907571,7067.80392777,0.000109,2]
[336628146,1724980959035,176.84604122,0.000109,2]
[336628147,1724981017182,1500.0,0.00010826,2]
[336628148,1724981034098,386.60352849,0.00024,120]
[336628149,1724981050185,162.84,0.00010959,2]
[336628150,1724981119477,2375.94760428,9e-05,2]
[336628151,1724981153952,4493.95235894,6.94e-05,2]
[336628152,1724981187396,150.0,9.888e-05,2]
[336628153,1724981213842,5799.49075132,0.000107,15]
[336628154,1724981317953,248.64526366,0.0002,60]
[336628156,1724981319553,-1353.79711392,0.00010965,2]
[336628157,1724981331696,3112.049115,0.0001091,2]
[336628158,1724981332774,6361.02353502,0.000109,2]
[336628160,1724981358810,221.04327,0.0001095,2]
[336628161,1724981431759,206.68,0.00024,120]
[336628169,1724981432144,-146.20288608,0.00010965,2]
[336628170,1724981432153,-406.70732223,0.00010997,2]
[336628171,1724981432162,-300.0,0.00010998,2]
[336628172,1724981432171,-150.0,0.00010998,2]
[336628173,1724981432181,-9782.56,0.00010999,2]
[336628174,1724981432190,-1366.83438077,0.00010999,2]
[336628175,1724981432199,-44107.22884632,0.00010999,2]
[336628176,1724981432210,-677.13390436,0.00010999,2]
[336628177,1724981432221,-295.4294,0.00010999,2]
[336628178,1724981432232,-43996.22216674,0.00010999,2]
[336628179,1724981432242,-605.8706845,0.00010999,2]
[336628180,1724981432252,-359.09985769,0.00010999,2]
[336628181,1724981432262,-27892.4845911,0.00011,2]
[336628182,1724981432329,-4170.51827879,0.00011,2]
[336628183,1724981432340,-1178.81576721,0.00011,2]
[336628184,1724981438290,-28787.70573479,0.00011,2]
[336628185,1724981438301,-3054.78397938,0.00011,2]
[336628186,1724981438313,-1954.87549614,0.00011,2]
[336628187,1724981438324,-1106.44534,0.00011,2]
[336628188,1724981438649,-812.57737722,0.00011,2]
[336628373,1724981440647,-325.69255339,0.00011,2]
[336628627,1724981443222,-3939.92439593,0.00011,2]
[336628638,1724981443362,-423.70609048,0.00011,2]
[336628640,1724981443377,-1364.2199562,0.00011,2]
[336628761,1724981444579,-12295.49214234,0.00011,2]
[336628762,1724981444590,-1723.80973372,0.00011,2]
[336628763,1724981444600,-486.18500001,0.00011,2]
[336628764,1724981444611,-833.87987711,0.00011,2]
[336628765,1724981444626,-1464.06406546,0.00011,2]
[336628766,1724981444637,-935.898057,0.00011,2]
[336628768,1724981444649,-448.95942964,0.00011,2]
[336628770,1724981444660,-694.5375725,0.00011,2]
[336628936,1724981446263,-4385.36946977,0.00011,2]
[336628939,1724981446286,-36811.32100341,0.00011,2]
[336628941,1724981446297,-659.22269342,0.00011,2]
[336628943,1724981446309,-442.79258183,0.00011,2]
[336628945,1724981446320,-392.00256734,0.00011,2]
[336628947,1724981446330,-341.79192375,0.00011,2]
[336628949,1724981446341,-9477.75914628,0.00011,2]
[336628951,1724981446352,-29771.8635025,0.00011,2]